Cogmind - Beta 13 @@@ ROGUE MODE // 2024.04.04 @ 15:59:50 Player: Archimato Result: Destroyed by G-47 Trooper with Particle Gun Performance ------------- Evolutions (2) 1000 Regions Visited (6) 1200 Robots Destroyed (38) 190 Value Destroyed (1067) 1067 Prototype IDs (1) 20 Alien Tech Used (0) 0 Bonus (721) 721 TOTAL SCORE: 4198 Bonus ------- High Alert Combat Kills 21 Entered Garrisons 200 Used RIF Installer 500 Cogmind --------- Core Integrity 0/550 Matter 122/300 Energy 88/100 System Corruption 0% Temperature Cool (9) Movement Core (150) Ox2 Location -8/Materials Parts ------- > --- POWER (1) -------- (None) > --- PROPULSION (2) --- (None) > --- UTILITY (5) ------ Small Storage Unit Visual Processing Unit Armor Integrity Analyzer Utility Shielding > --- WEAPON (3) ------- Mining Claw > --- INVENTORY (8) ---- Relay Coupler [NC] (31) Relay Coupler [Sentry] (21) Relay Coupler [Sentry] (24) Improved Field Recycling Unit (0) Peak State ------------ > --- POWER ------------ Light Nuclear Core > --- PROPULSION ------- Aluminum Leg Aluminum Leg > --- UTILITY ---------- Small Storage Unit Structural Scanner Visual Processing Unit Armor Integrity Analyzer Utility Shielding > --- WEAPON ----------- Autogun High-powered Shotgun Assault Cannon > --- INVENTORY -------- Light Nuclear Core Aluminum Leg Relay Coupler [NC] Relay Coupler [Sentry] Relay Coupler [Sentry] Improved Field Recycling Unit Assault Cannon [Rating: 24] Favorites ----------- Power Light Nuclear Core Engine Light Ion Engine Power Core Light Nuclear Core Propulsion Aluminum Leg Leg Aluminum Leg Hover Unit Improved Hover Unit Flight Unit VTOL Module Utility Small Storage Unit Device Structural Scanner Storage Small Storage Unit Processor Visual Processing Unit Protection Utility Shielding Weapon Autogun Energy Gun Medium Laser Ballistic Gun Autogun Ballistic Cannon Assault Cannon Slashing Weapon Mining Claw Build | -11 -10 -9 -9 -8 -8 -8 ------- Run | Yrd Mat Mat Min Mat Gar Mat Slots Evolved 4 | . . 2 . 2 . . Power . | . . . . . . . Propulsion . | . . . . . . . Utility 3 | . . 2 . 1 . . Weapon 1 | . . . . 1 . . Parts Attached 42 | 7 4 8 4 11 4 4 Power 6 | 1 . 1 . 3 1 . Engine 3 | 1 . 1 . 1 . . Core 3 | . . . . 2 1 . Reactor . | . . . . . . . Propulsion 17 | 2 2 5 2 4 1 1 Treads . | . . . . . . . Leg 9 | 2 . . 2 4 1 . Wheel . | . . . . . . . Hover 6 | . 2 3 . . . 1 Flight 2 | . . 2 . . . . Utility 6 | 1 1 2 . 1 1 . Device 1 | . . . . 1 . . Storage 1 | 1 . . . . . . Processor 3 | . 1 1 . . 1 . Hackware . | . . . . . . . Protection 1 | . . 1 . . . . Artifact . | . . . . . . . Weapon 13 | 3 1 . 2 3 1 3 Energy Gun 4 | 2 . . 1 . . 1 Energy Cannon . | . . . . . . . Ballistic Gun 5 | 1 1 . 1 2 . . Ballistic Cannon 3 | . . . . 1 1 1 Launcher . | . . . . . . . Special Weapon . | . . . . . . . Impact Weapon . | . . . . . . . Slashing Weapon 1 | . . . . . . 1 Piercing Weapon . | . . . . . . . Special Melee Weapon . | . . . . . . . Unidentified Prototypes 1 | . . . . . . 1 Parts Lost 15 | . . . 3 2 7 3 Power 2 | . . . 1 . 1 . Propulsion 3 | . . . . . 2 1 Utility 2 | . . . . 1 . 1 Weapon 8 | . . . 2 1 4 1 Highest Loss Streak 7 | . . . 1 2 7 2 To Critical Strikes . | . . . . . . . Average Slot Usage (%) 91 | . 99 98 99 93 96 45 Engine 4 | . 14 11 10 1 . . Core 4 | . . . . 7 8 . Leg 12 | . 3 . 17 18 16 . Hover 5 | . 24 20 4 . . . Device 4 | . . . . 6 9 3 Storage 10 | . 14 11 11 9 9 9 Processor 17 | . 13 20 22 15 18 18 Protection 8 | . . 11 11 9 9 9 Energy Gun 5 | . 14 11 11 7 . . Ballistic Gun 12 | . 14 11 11 12 16 . Ballistic Cannon 4 | . . . . 6 9 4 Naked Turns . | . . . . . . . Heaviest Build 23 | 11 13 14 14 23 23 11 Greatest Support 20 | 20 20 14 20 20 20 7 Greatest Overweight (x) 5 | 2 . 3 . 1 5 3 Average Overweight (x) . | . . . . . 1 2 Largest Inventory Capacity 8 | 8 8 8 8 8 8 8 Average Capacity 7 | 7 8 8 8 8 8 8 Most Carried 8 | 3 8 8 7 7 7 6 Average Carried 4 | 1 7 6 3 3 4 4 Final Capacity 8 | 8 8 8 8 8 8 8 Final Carried 8 | 2 8 7 2 4 4 4 Class Distribution -------------------- 51% | Mutant 32% | Scavenger-Gunner 14% | Gunner Dominant Class ---------------- Mutant | -10/Materials Mutant | -9/Materials Mutant | -9/Mines Gunner | -8/Materials Scavenger-Gunner | -8/Garrison Mutant | -8/Materials Resources | -11 -10 -9 -9 -8 -8 -8 ----------- Run | Yrd Mat Mat Min Mat Gar Mat Matter Collected 1045 | 226 35 158 168 250 184 24 Remotely . | . . . . . . . Salvage Created 887 | . 35 117 239 321 162 13 Parts 62 | . 3 16 18 16 8 1 Haulers Intercepted . | . . . . . . . Recyclers Shooed . | . . . . . . . Parts Field Recycled . | . . . . . . . Retrieved Matter . | . . . . . . . Parts Self-Destructed . | . . . . . . . Prevented . | . . . . . . . Kills | -11 -10 -9 -9 -8 -8 -8 ------- Run | Yrd Mat Mat Min Mat Gar Mat Combat Hostiles Destroyed 36 | . 1 6 9 6 11 3 Guns 24 | . 1 6 9 5 3 . Cannons 12 | . . . . 1 8 3 Classes Destroyed 7 | . 1 2 1 3 . . Builder 1 | . . 1 . . . . Watcher 1 | . . . . 1 . . Swarmer 23 | . . 6 6 . 8 3 Grunt 8 | . 1 . 2 3 2 . Brawler 1 | . . . 1 . . . Sentry 2 | . . . . 1 1 . Specialist 2 | . . . . 2 . . Best Kill Streak 7 | . 1 7 6 4 6 3 Combat Bots Only 6 | . 1 6 6 3 6 3 Max Kills in Single Turn 2 | . 1 2 2 1 2 1 Gunslinging 1 | . . 1 1 . . . Exploded . | . . . . . . . Melee . | . . . . . . . Uniques/NPCs Destroyed . | . . . . . . . Combat | -11 -10 -9 -9 -8 -8 -8 -------- Run | Yrd Mat Mat Min Mat Gar Mat Hostile Shots Fired 336 | . 8 31 66 42 126 63 Missed 97 | . 4 14 19 21 23 16 Damage Taken 2553 | . 46 150 489 286 991 591 Core 744 | . 10 11 162 44 146 371 Absorbed by Shields 4 | . . . . . 4 . Redirected to Shielding 47 | . . 5 7 8 22 5 Core Remaining (%) 84 | 100 96 . 56 . . . Volleys Fired 105 | 1 5 8 31 20 19 21 Largest 3 | 2 2 2 2 3 3 1 Hottest 111 | 70 73 73 73 107 111 44 Shots Fired 209 | 2 10 16 49 58 53 21 Gun 157 | 2 10 16 49 48 32 . Cannon 52 | . . . . 10 21 21 Launcher . | . . . . . . . Special . | . . . . . . . Kinetic 157 | 1 5 8 29 40 53 21 Thermal 32 | 1 5 8 18 . . . Explosive . | . . . . . . . Electromagnetic 20 | . . . 2 18 . . Robot Hit Streak 15 | . 5 7 10 15 9 14 Robot Miss Streak 7 | 2 3 2 3 4 7 3 Penetration Max . | . . . . . . . Secondary Targets 4 | . . 2 2 . . . Max Gunslinging Chain 1 | . . 1 1 . . . Shots Hit Robots 132 | . 7 10 33 33 34 15 Core Hits 53 | . 2 7 12 13 15 4 Critical Kills . | . . . . . . . Critical Parts Destroyed 1 | . 1 . . . . . Critical Strikes 7 | . 1 2 2 1 . 1 Burn 4 | . . 2 2 . . . Destroy 1 | . 1 . . . . . Blast 1 | . . . . . . 1 Corrupt 1 | . . . . 1 . . Melee Attacks 3 | . . . . . . 3 Impact . | . . . . . . . Slashing 3 | . . . . . . 3 Piercing . | . . . . . . . Sneak Attacks . | . . . . . . . Combat Hostiles . | . . . . . . . Follow-up Attacks . | . . . . . . . Damage Inflicted 2529 | . 101 147 463 648 759 411 Guns 1486 | . 101 130 463 467 325 . Cannons 915 | . . . . 142 434 339 Explosions 34 | . . . . 34 . . Melee 72 | . . . . . . 72 Ramming 22 | . . 17 . 5 . . Kinetic 1911 | . 64 43 269 437 759 339 Thermal 331 | . 37 87 173 34 . . Explosive . | . . . . . . . Electromagnetic 193 | . . . 21 172 . . Impact . | . . . . . . . Slashing 72 | . . . . . . 72 Piercing . | . . . . . . . Highest Corruption . | . . . . . . . Average Corruption . | . . . . . . . Corruption Purged . | . . . . . . . Corruption Blocked . | . . . . . . . Overload Shots . | . . . . . . . Overflow Damage . | . . . . . . . Projectiles . | . . . . . . . Explosions . | . . . . . . . Melee . | . . . . . . . Knockbacks 7 | . . . . 4 2 1 Impact . | . . . . . . . Kinetic 6 | . . . . 4 1 1 Secondary 1 | . . . . . 1 . Self-Inflicted Damage 8 | . . 8 . . . . Shots . | . . . . . . . Rammed 1 | . . 1 . . . . Targets Rammed 3 | . . 1 . 2 . . Kicked 2 | . . . . 2 . . Crushed . | . . . . . . . Highest Temperature 234 | 30 150 105 211 195 234 9 Average Temperature 78 | 18 79 51 81 79 92 9 Received Heat Transfer 674 | . 24 . 162 81 155 252 Effects 6 | . . . 3 . 3 . Interference 6 | . . . 3 . 3 . Siege Activations . | . . . . . . . Robots Corrupted . | . . . . . . . Combat Hostiles . | . . . . . . . Parts Fried . | . . . . . . . Impact Corruptions . | . . . . . . . Robots Melted . | . . . . . . . Combat Hostiles . | . . . . . . . Parts Melted 4 | . 1 1 2 . . . Heat Transferred 1234 | . 111 407 666 50 . . Parts Sabotaged . | . . . . . . . Parts Stolen . | . . . . . . . Parts Stripped . | . . . . . . . Power Chain Reactions 1 | . . . . 1 . . Alert | -11 -10 -9 -9 -8 -8 -8 ------- Run | Yrd Mat Mat Min Mat Gar Mat Peak Influence 499 | . 75 236 376 367 499 342 Initial 238 | . . 31 91 146 238 223 Average 249 | . 19 118 237 308 352 290 Maximum Alert Level 2 | . . 1 1 1 2 1 Low Security (%) 29 | 100 100 67 50 7 . . Level 1 64 | . . 32 50 92 82 100 Level 2 6 | . . . . . 17 . Level 3 . | . . . . . . . Level 4 . | . . . . . . . Level 5 . | . . . . . . . High Security . | . . . . . . . Max Security . | . . . . . . . Squads Dispatched 6 | . 1 1 . 3 . 1 Investigation . | . . . . . . . Extermination . | . . . . . . . Reinforcement 4 | . 1 1 . 1 . 1 Assault . | . . . . . . . Garrison 2 | . . . . 2 . . Intercept . | . . . . . . . Searches Triggered . | . . . . . . . Construction Impeded . | . . . . . . . Haulers Reinforced . | . . . . . . . Active Scanning Responses . | . . . . . . . Cargo Convoy Interrupts . | . . . . . . . Stealth | -11 -10 -9 -9 -8 -8 -8 --------- Run | Yrd Mat Mat Min Mat Gar Mat Distress Signals 2 | . 1 . . 1 . . Communications Jammed . | . . . . . . . Distress Signals . | . . . . . . . Times Spotted 64 | . 5 13 15 8 12 11 Peak Tracking Total 9 | . 3 9 5 4 8 4 Tactical Retreats 6 | . . 2 3 . . 1 Traps | -11 -10 -9 -9 -8 -8 -8 ------- Run | Yrd Mat Mat Min Mat Gar Mat Traps Triggered 5 | . . . . . 5 . Indirectly . | . . . . . . . Trap Hack Attempts . | . . . . . . . Triggered . | . . . . . . . Disarmed . | . . . . . . . Reprogrammed . | . . . . . . . Reused . | . . . . . . . Traps Extracted . | . . . . . . . Installed . | . . . . . . . Triggered . | . . . . . . . Machines | -11 -10 -9 -9 -8 -8 -8 ---------- Run | Yrd Mat Mat Min Mat Gar Mat Machines Disabled 4 | . . . . 2 1 1 Max in Single Turn 1 | . . . . 1 1 1 Garrison Relay 1 | . . . . . 1 . Machines Repaired . | . . . . . . . Machines Dismantled . | . . . . . . . Machines Sabotaged . | . . . . . . . Overloaded Fab Kills . | . . . . . . . Hacking | -11 -10 -9 -9 -8 -8 -8 --------- Run | Yrd Mat Mat Min Mat Gar Mat Machines Accessed 5 | . 1 . . 2 1 1 Terminals 2 | . . . . 1 1 . Fabricators . | . . . . . . . Repair Stations . | . . . . . . . Recycling Units 2 | . 1 . . . . 1 Scanalyzers . | . . . . . . . Garrison Access 1 | . . . . 1 . . Total Hacks 10 | . 1 . . 5 2 2 Successful 4 | . 1 . . 1 1 1 Failed 6 | . . . . 4 1 1 Catastrophic . | . . . . . . . Database Lockouts . | . . . . . . . Manual . | . . . . . . . Terminals 4 | . . . . 2 2 . Fabricators . | . . . . . . . Repair Stations . | . . . . . . . Recycling Units 3 | . 1 . . . . 2 Scanalyzers . | . . . . . . . Garrison Access 3 | . . . . 3 . . Terminal Hacks 1 | . . . . . 1 . Security Stations 1 | . . . . . 1 . Fabricator Hacks . | . . . . . . . Repair Station Hacks . | . . . . . . . Recycling Unit Hacks 2 | . 1 . . . . 1 Report Inventory 2 | . 1 . . . . 1 Scanalyzer . | . . . . . . . Garrison Access Hacks 1 | . . . . 1 . . Unlock Access 1 | . . . . 1 . . Unauthorized Hacks . | . . . . . . . Terminals . | . . . . . . . Fabricators . | . . . . . . . Repair Stations . | . . . . . . . Recycling Units . | . . . . . . . Scanalyzers . | . . . . . . . Garrison Access . | . . . . . . . Data Cores Recovered . | . . . . . . . Used . | . . . . . . . Hacking Detections 3 | . . . . 1 1 1 Full Trace Events . | . . . . . . . Feedback Events . | . . . . . . . Feedback Blocked . | . . . . . . . Robot Schematics Acquired . | . . . . . . . Robots Built . | . . . . . . . Authchips . | . . . . . . . Time . | . . . . . . . Total Robot Build Rating . | . . . . . . . Part Schematics Acquired . | . . . . . . . Parts Built . | . . . . . . . Authchips . | . . . . . . . Time . | . . . . . . . Total Part Build Rating . | . . . . . . . Parts Repaired . | . . . . . . . Time . | . . . . . . . Parts Recycled . | . . . . . . . Recycled Matter . | . . . . . . . Retrieved Matter . | . . . . . . . Retrieved Components . | . . . . . . . Parts Scanalyzed . | . . . . . . . Part Schematics Acquired . | . . . . . . . Parts Damaged . | . . . . . . . Bothacking | -11 -10 -9 -9 -8 -8 -8 ------------ Run | Yrd Mat Mat Min Mat Gar Mat Used RIF Installer 1 | . . . . . 1 . Robots Hacked . | . . . . . . . Non-combat . | . . . . . . . Combat . | . . . . . . . Robot Hacks Applied . | . . . . . . . Relay Couplers Released 5 | . . . . . 5 . Machine Destruction 5 | . . . . . 5 . Fabnet Peak Effective % . | . . . . . . . Robots Rewired . | . . . . . . . Allies Hacked . | . . . . . . . Hacks Repelled . | . . . . . . . Allies | -11 -10 -9 -9 -8 -8 -8 -------- Run | Yrd Mat Mat Min Mat Gar Mat Total Allies . | . . . . . . . Largest Group . | . . . . . . . Highest-Rated Group . | . . . . . . . Highest-Rated Ally . | . . . . . . . Total Orders . | . . . . . . . Ally Attacks . | . . . . . . . Total Damage . | . . . . . . . Kills . | . . . . . . . Allies Corrupted . | . . . . . . . Allies Melted . | . . . . . . . Intel | -11 -10 -9 -9 -8 -8 -8 ------- Run | Yrd Mat Mat Min Mat Gar Mat Robot Analysis Total . | . . . . . . . Derelict Logs Recovered . | . . . . . . . Drone Launches . | . . . . . . . Drone Recoveries . | . . . . . . . Exploration | -11 -10 -9 -9 -8 -8 -8 ------------- Run | Yrd Mat Mat Min Mat Gar Mat Turns Passed 1458 | 72 164 114 186 276 492 154 Spaces Moved 870 | 47 218 128 90 113 212 62 Core 79 | 10 . . . . 14 55 Treads . | . . . . . . . Legs 444 | 37 12 . 84 113 198 . Wheels . | . . . . . . . Hover 345 | . 206 126 6 . . 7 Flight 2 | . . 2 . . . . Fastest Speed 50 | 50 56 56 56 120 150 60 Average Speed 120 | 115 59 58 115 162 191 155 Slowest Speed 300 | 150 120 275 120 190 300 200 Overloaded Moves . | . . . . . . . Propulsion Burnouts . | . . . . . . . Robots Hopped . | . . . . . . . Cave-ins Triggered . | . . . . . . . Exploration Rate (%) 21 | 4 39 26 21 9 39 10 Regions Visited 6 Branch Regions 1 Pre-discovered Areas . | . . . . . . . Known Exits Taken 1 | . . . . 1 . . Unknown Exits Taken 4 | 1 1 1 1 . . . Scrap Searched . | . . . . . . . Spaces Dug . | . . . . . . . Terrain Destroyed 18 | . . . . 14 . 4 Melee . | . . . . . . . Projectile 6 | . . . . 2 . 4 AOE 12 | . . . . 12 . . Terrain Rammed . | . . . . . . . Walls Destroyed . | . . . . . . . Machines Disabled . | . . . . . . . Actions | -11 -10 -9 -9 -8 -8 -8 --------- Run | Yrd Mat Mat Min Mat Gar Mat Total 1108 | 63 243 151 129 165 262 95 Wait . | . . . . . . . Move 864 | 46 217 127 89 112 211 62 Hop . | . . . . . . . Pick Up 47 | 8 12 4 1 13 5 4 Fast Attach . | . . . . . . . Attach 22 | 7 1 2 2 4 2 4 Detach 1 | 1 . . . . . . Swap 20 | . 3 6 2 7 2 . Drop 23 | . 5 3 4 7 3 1 Fire 105 | 1 5 8 31 20 19 21 Melee 3 | . . . . . . 3 Ram 1 | . . 1 . . . . Kick 2 | . . . . 2 . . Crush . | . . . . . . . Escape Stasis 20 | . . . . . 20 . Rewire . | . . . . . . . Trap . | . . . . . . . Miscellaneous . | . . . . . . . Route ------- -11/Scrapyard -10/Materials (discovered 2 exits: [*Mat] / [*Min]) -9/Materials -9/Mines -8/Materials -8/Garrison (discovered 2 exits: *Mat x2) -8/Materials History --------- Turn | Location | Event 12 | -11/Scrapyard | Discovered new exit (range 15) 73 | -11/Scrapyard | Entered Materials 158 | -10/Materials | Discovered new exit (range 15) 228 | -10/Materials | Discovered new exit (range 15) 237 | -10/Materials | Entered another Materials area 237 | -9/Materials | Evolved 2 slots: Utility x2 334 | -9/Materials | Build established: Mutant 348 | -9/Materials | Discovered new exit (range 6) 351 | -9/Materials | Entered Mines 519 | -9/Mines | Discovered new exit (range 5) 537 | -9/Mines | Entered Materials 537 | -8/Materials | Evolved 2 slots: Utility x1, Weapon x1 545 | -8/Materials | Garrison activated, responded to threat 750 | -8/Materials | Garrison activated, responded to threat 807 | -8/Materials | Identified exit to Garrison 813 | -8/Materials | Entered Garrison 854 | -8/Garrison | Installed Relay Interface Framework 900 | -8/Garrison | Triggered checkpoint 934 | -8/Garrison | Garrison Relay disabled 1081 | -8/Garrison | Build established: Scavenger-Gunner 1096 | -8/Garrison | Triggered checkpoint 1217 | -8/Garrison | Learned Materials security intel 1227 | -8/Garrison | Discovered new exit (range 12) 1242 | -8/Garrison | Triggered checkpoint 1295 | -8/Garrison | Discovered new exit (range 5) 1305 | -8/Garrison | Entered Materials 1333 | -8/Materials | Lost 7 parts (1p2n4w) 1425 | -8/Materials | Core integrity fell below 50% 1450 | -8/Materials | Core integrity fell below 20% 1459 | -8/Materials | Destroyed by G-47 Trooper with Particle Gun Last Messages --------------- Terminal disabled. K-01 Serf collects debris. S-10 Pest destroyed. R-06 Scavenger collects Flight Unit. K-01 Serf collects debris. Acquired 1 matter. Acquired 7 matter. Acquired 11 matter. W-25 Informer knocked back. Acquired 1 matter. Acquired 4 matter. U-05 Engineer builds a Wall. Assault Cannon destroyed. Acquired Prototype Energy Gun. Identified Adv. Beam Rifle. Faulty integration triggers energy drain (-25). Dropped Faulty Adv. Beam Rifle. U-05 Engineer builds a Wall. Acquired Mining Claw. U-05 Engineer builds a Wall. Map ----- +----------------------------------------------------+ | ???????????????????????????????????????????? | | ???????????????????????????????????????????? | | ???????????????????????????????????????????? | | ???????????????????????????????????????????? | | ???????????????????????????????????????????? | | ???????????????????????????????????????????? | | ???????????????????????????????????????????? | | ???????????????????????????????????????????? | | ???????????????????????????????????????????? | | ???????????????????????????????????????????? | | ???????????????????????????????????????????? | | ???????????????????????????????????????????? | | ???????????????????????????????????????????? | | ???????????????????????????????????????????? | | ???????????????????????????????????????????? | | ???????????????????????????????????????????? | | ???????????????????????????????????????????? | | ???????????????????????????????????????????? | | ?????????????????#?????????????????????????? | | ?????????????????# ????????????????????????? | | ?????????????????# ????????????????????????? | | ?????????????????#%#???????????????????????? | | ?????????????????#%"???????????????????????? | | ????????????????##g#########???????????????? | | ????????????????##g #???????????????? | | ?????????????????#g@ ![ #???????????????? | | ?????????????????# % !! #???????????????? | | ?????????????????# !! #???????????????? | | ?????????????????# #???????????????? | | ?????????????????# #???????????????? | | ?????????????????# #???#???????????? | | ?????????????????# #?? #???????????? | | ?????????????????#####+#######%#???????????? | | ???????????????????# % ##??????????? | | ???????????????????# % #??????????? | | ???????????????????# ^ % = #??????????? | | ???????????????????# #??????????? | | ???????????????????#^ ^ #??????????? | | ?????########??????# """ #??????????? | | ?????# """ #??????# """ #??????????? | | ?????# "Y" #??????# """ #??????????? | | ?????# #??????# #??????????? | | ?????# #??????# +????????? | | ?????# #?????## """ """ ###????????? | | ?????# #?????#T """ """ #??????????? | | ?????####+########## """ """ #??????????? | | ?????# #??????????? | | ?????# +??????????? | | ?????# #??????????? | | ?????###########+### #??????????? | +----------------------------------------------------+ Best States ------------- Heat Dissipation 31 Energy Generation 14 Energy Capacity 160 Matter Stores 300 Matter Capacity 300 Sight Range 18 Terrain Scan Density 10 Utility Shielding 33 Evasion (%) 55 Targeting Accuracy 6 Armor Integrity Analysis 30 Item Schematics ----------------- None Robot Schematics ------------------ None Fabricated ------------ Nothing Alien Tech Used ----------------- None Achievements -------------- None Challenges ------------ None Game ------ Seed MakeshiftMissileStorage Manual? 0 Play Time 00:18:39 Cumulative 8.4 hours Start 2024.04.04 @ 15:42:13 End 2024.04.04 @ 15:59:50 Sessions 1 Manual Loads 0 Difficulty Rogue Special Mode None Game No. 12 Rogue 12 Adventurer 0 Explorer 0 Win Type - Total 0 Types 0/0/0/0/0/0/0/0/0 Lore% 17 Gallery% 17 Achievement% 13 Wizard Run 0 Options --------- Layout 1 ASCII 0 Keyboard 0 Movement Mouse Keybinds 0 Fullscreen 1 Font 24/Smallcaps Map View 50x35 Zoom Use 0% Tactical HUD 0 Map Filters NONE Filters NONE Steam 1 RUN: 96dee4b8-c31b-466c-86f5-ac181b4018d5